[Event "Early-Titled-Tuesday-Blitz-May-14-2024"]
[Site "Chess.com"]
[Date "2024.05.14"]
[Round "11"]
[White "Journey_to_GrandMaster_YT"]
[Black "Fjal"]
[Result "1-0"]
[WhiteElo "2539"]
[BlackElo "2338"]
[TimeControl "180+1"]
[EndTime "10:08:24 PDT"]
[Termination "Journey_to_GrandMaster_YT won by resignation"]

1. Nf3 {[%clk 0:03:00.9]} 1... Nf6 {[%clk 0:02:55.5]} 2. d4 {[%clk 0:02:59.7]}
2... g6 {[%clk 0:02:52.9]} 3. g3 {[%clk 0:02:59.2]} 3... Bg7 {[%clk 0:02:52.3]}
4. Bg2 {[%clk 0:02:59.8]} 4... O-O {[%clk 0:02:52.8]} 5. O-O {[%clk 0:03:00.4]}
5... b6 {[%clk 0:02:50.8]} 6. b3 {[%clk 0:02:55.3]} 6... Bb7 {[%clk 0:02:51.2]}
7. Bb2 {[%clk 0:02:56]} 7... c5 {[%clk 0:02:51.4]} 8. dxc5 {[%clk 0:02:54.9]}
8... bxc5 {[%clk 0:02:52.3]} 9. c4 {[%clk 0:02:55.1]} 9... d6 {[%clk 0:02:52.2]}
10. Nc3 {[%clk 0:02:54.9]} 10... Nc6 {[%clk 0:02:51.6]} 11. Re1 {[%clk
0:02:46.5]} 11... a6 {[%clk 0:02:40.5]} 12. e4 {[%clk 0:02:45.9]} 12... Ra7
{[%clk 0:02:40.3]} 13. Nd5 {[%clk 0:02:40.4]} 13... Re8 {[%clk 0:02:36.6]} 14.
Nxf6+ {[%clk 0:02:38.9]} 14... exf6 {[%clk 0:02:33.4]} 15. Qd2 {[%clk
0:02:33.2]} 15... Ba8 {[%clk 0:02:25.4]} 16. Rad1 {[%clk 0:02:33.2]} 16... Rd7
{[%clk 0:02:25.8]} 17. Qf4 {[%clk 0:02:28.1]} 17... Ne5 {[%clk 0:02:22.7]} 18.
Bh3 {[%clk 0:02:10.4]} 18... f5 {[%clk 0:01:42.2]} 19. Nxe5 {[%clk 0:01:33.2]}
19... dxe5 {[%clk 0:01:33.3]} 20. Qc1 {[%clk 0:01:28.3]} 20... Bxe4 {[%clk
0:01:26.7]} 21. Rxd7 {[%clk 0:01:26.2]} 21... Qxd7 {[%clk 0:01:27.6]} 22. Rxe4
{[%clk 0:01:26.1]} 22... Qd3 {[%clk 0:00:55.8]} 23. Re3 {[%clk 0:01:17.3]} 23...
Qd6 {[%clk 0:00:53]} 24. Re1 {[%clk 0:01:12.4]} 24... f4 {[%clk 0:00:51]} 25.
Bg2 {[%clk 0:01:07.3]} 25... g5 {[%clk 0:00:44.5]} 26. Qd1 {[%clk 0:01:05.1]}
26... Qg6 {[%clk 0:00:38.8]} 27. Bd5 {[%clk 0:00:47.8]} 27... h5 {[%clk
0:00:23.6]} 28. Qb1 {[%clk 0:00:45.3]} 28... Qf6 {[%clk 0:00:17.9]} 29. Qe4
{[%clk 0:00:43.3]} 29... Kh8 {[%clk 0:00:17.2]} 30. gxf4 {[%clk 0:00:36.6]}
30... gxf4 {[%clk 0:00:17]} 31. f3 {[%clk 0:00:36.3]} 31... Rg8 {[%clk
0:00:14.6]} 32. Kh1 {[%clk 0:00:35.4]} 32... Qg5 {[%clk 0:00:13.6]} 33. Bxe5
{[%clk 0:00:21.1]} 33... f6 {[%clk 0:00:10.2]} 34. Bxf4 {[%clk 0:00:19.5]} 34...
Qh4 {[%clk 0:00:10.4]} 35. Bxg8 {[%clk 0:00:15.2]} 35... f5 {[%clk 0:00:08.8]}
36. Qe8 {[%clk 0:00:11.7]} 36... Qxf4 {[%clk 0:00:07.8]} 37. Bd5+ {[%clk
0:00:08]} 37... Kh7 {[%clk 0:00:08.5]} 38. Bg8+ {[%clk 0:00:06.6]} 38... Kh6
{[%clk 0:00:09.1]} 39. Qe3 {[%clk 0:00:06.2]} 39... Kg5 {[%clk 0:00:08.4]} 40.
Qxf4+ {[%clk 0:00:05.8]} 40... Kxf4 {[%clk 0:00:09.3]} 41. Re6 {[%clk
0:00:06.3]} 41... Kxf3 {[%clk 0:00:08.9]} 42. Rxa6 {[%clk 0:00:06.3]} 42... f4
{[%clk 0:00:09]} 43. Bd5+ {[%clk 0:00:06.8]} 43... Kf2 {[%clk 0:00:09]} 44. Rg6
{[%clk 0:00:06.2]} 44... Bd4 {[%clk 0:00:08.7]} 45. Rg5 {[%clk 0:00:06.5]} 45...
Ke3 {[%clk 0:00:08.5]} 46. Rxh5 {[%clk 0:00:06.7]} 46... f3 {[%clk 0:00:08.7]}
47. Rh3 {[%clk 0:00:07.1]} 47... Kd2 {[%clk 0:00:07.3]} 48. Rxf3 {[%clk
0:00:07.6]} 1-0

[Event "Early-Titled-Tuesday-Blitz-May-14-2024"]
[Site "Chess.com"]
[Date "2024.05.14"]
[Round "11"]
[White "GelmanAlexander"]
[Black "Lady_Nika"]
[Result "1-0"]
[WhiteElo "2661"]
[BlackElo "2486"]
[TimeControl "180+1"]
[EndTime "10:08:25 PDT"]
[Termination "GelmanAlexander won on time"]

1. c4 {[%clk 0:03:00.9]} 1... c5 {[%clk 0:02:58.3]} 2. Nf3 {[%clk 0:03:00.9]}
2... Nc6 {[%clk 0:02:58.5]} 3. d3 {[%clk 0:03:01.4]} 3... g6 {[%clk 0:02:58.7]}
4. a3 {[%clk 0:03:01.8]} 4... Bg7 {[%clk 0:02:58]} 5. e3 {[%clk 0:03:02.2]} 5...
e6 {[%clk 0:02:58.6]} 6. Be2 {[%clk 0:03:02.5]} 6... Nge7 {[%clk 0:02:58.9]} 7.
Nbd2 {[%clk 0:03:02.7]} 7... O-O {[%clk 0:02:59.5]} 8. O-O {[%clk 0:03:02.1]}
8... d5 {[%clk 0:02:59.8]} 9. cxd5 {[%clk 0:03:00.7]} 9... exd5 {[%clk
0:03:00.7]} 10. Re1 {[%clk 0:02:59.2]} 10... b6 {[%clk 0:03:00.6]} 11. Nf1
{[%clk 0:02:58.6]} 11... Bb7 {[%clk 0:03:00.8]} 12. Qc2 {[%clk 0:02:58.8]} 12...
Re8 {[%clk 0:03:01]} 13. Bd2 {[%clk 0:02:58.7]} 13... Rc8 {[%clk 0:03:00.8]} 14.
Rac1 {[%clk 0:02:58.1]} 14... Nf5 {[%clk 0:03:00.7]} 15. Qb1 {[%clk 0:02:56]}
15... Nd6 {[%clk 0:03:00.4]} 16. b4 {[%clk 0:02:54.7]} 16... Ne7 {[%clk
0:02:39.1]} 17. bxc5 {[%clk 0:02:53.6]} 17... bxc5 {[%clk 0:02:40]} 18. Qa2
{[%clk 0:02:45.4]} 18... Ba6 {[%clk 0:02:36.1]} 19. Ng3 {[%clk 0:02:41.4]} 19...
c4 {[%clk 0:02:34.8]} 20. d4 {[%clk 0:02:32.3]} 20... Nef5 {[%clk 0:02:26.3]}
21. Nxf5 {[%clk 0:02:28]} 21... gxf5 {[%clk 0:02:26.1]} 22. Bb4 {[%clk
0:02:19.4]} 22... Ne4 {[%clk 0:02:25.6]} 23. g3 {[%clk 0:02:13.2]} 23... Rb8
{[%clk 0:02:12.5]} 24. Bf1 {[%clk 0:02:07.8]} 24... Bc8 {[%clk 0:02:06.2]} 25.
Bg2 {[%clk 0:01:42.2]} 25... a5 {[%clk 0:02:04]} 26. Bc3 {[%clk 0:01:42.6]}
26... Rb3 {[%clk 0:01:58]} 27. Ba1 {[%clk 0:01:42.4]} 27... a4 {[%clk 0:01:58]}
28. Ne5 {[%clk 0:01:41]} 28... Ba6 {[%clk 0:01:52.3]} 29. Red1 {[%clk
0:01:39.3]} 29... Qd6 {[%clk 0:01:50]} 30. Qe2 {[%clk 0:01:37.3]} 30... Rxa3
{[%clk 0:01:44.7]} 31. Qh5 {[%clk 0:01:37.4]} 31... Qf6 {[%clk 0:01:07.7]} 32.
Bh3 {[%clk 0:01:25.4]} 32... Nd6 {[%clk 0:01:07]} 33. Qf3 {[%clk 0:01:13.1]}
33... Qe6 {[%clk 0:00:58.7]} 34. Bc3 {[%clk 0:01:00]} 34... f6 {[%clk
0:00:55.7]} 35. Nc6 {[%clk 0:00:52.4]} 35... Ne4 {[%clk 0:00:29.8]} 36. Bb4
{[%clk 0:00:45.2]} 36... Ra2 {[%clk 0:00:29.8]} 37. Ne7+ {[%clk 0:00:39.2]}
37... Rxe7 {[%clk 0:00:29.2]} 38. Bxf5 {[%clk 0:00:38.4]} 38... Qf7 {[%clk
0:00:25.9]} 39. Bxe7 {[%clk 0:00:37.2]} 39... Qxe7 {[%clk 0:00:26.8]} 40. Bxe4
{[%clk 0:00:32.7]} 40... dxe4 {[%clk 0:00:25.3]} 41. Qf5 {[%clk 0:00:32.9]}
41... Bf8 {[%clk 0:00:09.1]} 42. d5 {[%clk 0:00:31.1]} 42... Qd6 {[%clk
0:00:08.4]} 43. Qxe4 {[%clk 0:00:30.3]} 43... Bg7 {[%clk 0:00:04]} 44. Qe8+
{[%clk 0:00:29]} 44... Bf8 {[%clk 0:00:03.8]} 45. Rd4 {[%clk 0:00:28.5]} 45...
f5 {[%clk 0:00:01.6]} 46. Qh5 {[%clk 0:00:23.9]} 46... c3 {[%clk 0:00:01.1]} 47.
Qxf5 {[%clk 0:00:22.8]} 47... c2 {[%clk 0:00:00.8]} 48. Rg4+ {[%clk 0:00:22.7]}
48... Kh8 {[%clk 0:00:00.3]} 49. Rxc2 {[%clk 0:00:23]} 1-0

[Event "Early-Titled-Tuesday-Blitz-May-14-2024"]
[Site "Chess.com"]
[Date "2024.05.14"]
[Round "11"]
[White "ab-lsv"]
[Black "lluiss"]
[Result "1/2-1/2"]
[WhiteElo "2327"]
[BlackElo "2210"]
[TimeControl "180+1"]
[EndTime "10:08:26 PDT"]
[Termination "Game drawn by repetition"]

1. d4 {[%clk 0:02:59.6]} 1... Nf6 {[%clk 0:02:59]} 2. c4 {[%clk 0:02:59.9]} 2...
g6 {[%clk 0:02:58.9]} 3. Nc3 {[%clk 0:03:00]} 3... d5 {[%clk 0:02:59.1]} 4. Nf3
{[%clk 0:03:00]} 4... Bg7 {[%clk 0:02:58.6]} 5. Qb3 {[%clk 0:03:00.3]} 5... dxc4
{[%clk 0:02:54.6]} 6. Qxc4 {[%clk 0:03:01.2]} 6... O-O {[%clk 0:02:54.9]} 7. e4
{[%clk 0:03:01.3]} 7... a6 {[%clk 0:02:53.7]} 8. Be2 {[%clk 0:03:01.2]} 8... b5
{[%clk 0:02:53.1]} 9. Qb3 {[%clk 0:03:01.6]} 9... c5 {[%clk 0:02:52.2]} 10. dxc5
{[%clk 0:03:02.5]} 10... Nbd7 {[%clk 0:02:45.8]} 11. Be3 {[%clk 0:03:02.7]}
11... Ng4 {[%clk 0:02:46.1]} 12. Qd5 {[%clk 0:02:16.7]} 12... Nxe3 {[%clk
0:02:41.8]} 13. fxe3 {[%clk 0:02:17.6]} 13... Qa5 {[%clk 0:02:10.7]} 14. O-O
{[%clk 0:02:07.2]} 14... Rb8 {[%clk 0:02:02.9]} 15. a3 {[%clk 0:01:39.7]} 15...
Nf6 {[%clk 0:02:02.3]} 16. Qd2 {[%clk 0:01:30.7]} 16... b4 {[%clk 0:01:54.7]}
17. axb4 {[%clk 0:01:21.9]} 17... Qxb4 {[%clk 0:01:55.6]} 18. e5 {[%clk
0:01:07.2]} 18... Ng4 {[%clk 0:01:46.6]} 19. Nd5 {[%clk 0:00:56]} 19... Qxc5
{[%clk 0:01:33.4]} 20. Rfc1 {[%clk 0:00:52.2]} 20... Qa7 {[%clk 0:01:32]} 21.
Rc7 {[%clk 0:00:49.4]} 21... Qa8 {[%clk 0:01:32.2]} 22. Nxe7+ {[%clk 0:00:48.5]}
22... Kh8 {[%clk 0:01:32.3]} 23. Nxc8 {[%clk 0:00:41.7]} 23... Rbxc8 {[%clk
0:01:31.2]} 24. Rxc8 {[%clk 0:00:39.6]} 24... Qxc8 {[%clk 0:01:22.2]} 25. Rxa6
{[%clk 0:00:33.7]} 25... Bh6 {[%clk 0:01:21.8]} 26. Ra3 {[%clk 0:00:31.2]} 26...
Rd8 {[%clk 0:01:14.1]} 27. Nd4 {[%clk 0:00:28.9]} 27... Nxe5 {[%clk 0:01:13.9]}
28. Qc3 {[%clk 0:00:20.3]} 28... Bg7 {[%clk 0:00:49.2]} 29. Qxc8 {[%clk
0:00:19.8]} 29... Rxc8 {[%clk 0:00:49]} 30. Kf2 {[%clk 0:00:20]} 30... h5 {[%clk
0:00:37.6]} 31. b4 {[%clk 0:00:19.7]} 31... Nc6 {[%clk 0:00:31.2]} 32. Nxc6
{[%clk 0:00:18.4]} 32... Rxc6 {[%clk 0:00:31]} 33. b5 {[%clk 0:00:19]} 33... Rc2
{[%clk 0:00:30.1]} 34. Rb3 {[%clk 0:00:17.8]} 34... Be5 {[%clk 0:00:27.9]} 35.
g3 {[%clk 0:00:15.4]} 35... h4 {[%clk 0:00:27.3]} 36. gxh4 {[%clk 0:00:13.3]}
36... Bxh2 {[%clk 0:00:26.5]} 37. b6 {[%clk 0:00:13.8]} 37... Kg7 {[%clk
0:00:26.6]} 38. b7 {[%clk 0:00:13.8]} 38... Bb8 {[%clk 0:00:26]} 39. Kf3 {[%clk
0:00:12.4]} 39... Rc7 {[%clk 0:00:23]} 40. Bd3 {[%clk 0:00:11.3]} 40... Re7
{[%clk 0:00:22.1]} 41. Be4 {[%clk 0:00:11]} 41... f5 {[%clk 0:00:20.8]} 42. Bc6
{[%clk 0:00:10.3]} 42... Rc7 {[%clk 0:00:20]} 43. Bd5 {[%clk 0:00:10.6]} 43...
Rd7 {[%clk 0:00:19.4]} 44. e4 {[%clk 0:00:10.7]} 44... fxe4+ {[%clk 0:00:19]}
45. Bxe4 {[%clk 0:00:10.9]} 45... Rf7+ {[%clk 0:00:18.2]} 46. Ke2 {[%clk
0:00:08]} 46... Re7 {[%clk 0:00:18.3]} 47. Kf3 {[%clk 0:00:07.8]} 47... Rf7+
{[%clk 0:00:17.9]} 48. Ke2 {[%clk 0:00:08]} 48... Re7 {[%clk 0:00:18.2]} 49. Kf3
{[%clk 0:00:08.1]} 49... Rf7+ {[%clk 0:00:16]} 1/2-1/2

[Event "Early-Titled-Tuesday-Blitz-May-14-2024"]
[Site "Chess.com"]
[Date "2024.05.14"]
[Round "11"]
[White "js20000"]
[Black "Artem_Koval"]
[Result "1-0"]
[WhiteElo "2760"]
[BlackElo "2578"]
[TimeControl "180+1"]
[EndTime "10:08:27 PDT"]
[Termination "js20000 won on time"]

1. b3 {[%clk 0:03:00.9]} 1... e5 {[%clk 0:02:59.9]} 2. Bb2 {[%clk 0:02:57.2]}
2... Nc6 {[%clk 0:02:59.8]} 3. c4 {[%clk 0:02:55.2]} 3... Nf6 {[%clk 0:02:55.2]}
4. g3 {[%clk 0:02:51.3]} 4... d5 {[%clk 0:02:53.8]} 5. cxd5 {[%clk 0:02:49.5]}
5... Qxd5 {[%clk 0:02:54.7]} 6. Nf3 {[%clk 0:02:47.5]} 6... e4 {[%clk
0:02:54.9]} 7. Nc3 {[%clk 0:02:45.1]} 7... Qh5 {[%clk 0:02:51.5]} 8. Nh4 {[%clk
0:02:44.2]} 8... Bg4 {[%clk 0:02:45.1]} 9. h3 {[%clk 0:02:41.4]} 9... Be6 {[%clk
0:02:40.8]} 10. Ng2 {[%clk 0:02:39.8]} 10... O-O-O {[%clk 0:02:34.2]} 11. Nf4
{[%clk 0:02:36.2]} 11... Qe5 {[%clk 0:02:33.1]} 12. Nxe6 {[%clk 0:02:20.1]}
12... Qxe6 {[%clk 0:02:28.3]} 13. Bg2 {[%clk 0:02:16.9]} 13... e3 {[%clk
0:02:23.9]} 14. fxe3 {[%clk 0:02:14.3]} 14... Bd6 {[%clk 0:02:23.8]} 15. O-O
{[%clk 0:02:08.6]} 15... Bxg3 {[%clk 0:02:23.7]} 16. Nb5 {[%clk 0:02:05.3]}
16... Kb8 {[%clk 0:02:15.7]} 17. Rc1 {[%clk 0:02:01.1]} 17... a6 {[%clk
0:02:01.1]} 18. Rxc6 {[%clk 0:01:57.8]} 18... bxc6 {[%clk 0:01:49.7]} 19. Nd4
{[%clk 0:01:56.9]} 19... Rxd4 {[%clk 0:01:50.3]} 20. Bxd4 {[%clk 0:01:54.1]}
20... Ne4 {[%clk 0:01:38.4]} 21. Qc2 {[%clk 0:01:53.7]} 21... f5 {[%clk
0:01:38.5]} 22. d3 {[%clk 0:01:53.7]} 22... c5 {[%clk 0:01:25.4]} 23. Bxc5
{[%clk 0:01:42.4]} 23... Nxc5 {[%clk 0:01:25.5]} 24. Qxc5 {[%clk 0:01:42.2]}
24... Bd6 {[%clk 0:01:25.8]} 25. Qc6 {[%clk 0:01:42]} 25... Qxe3+ {[%clk
0:01:16.9]} 26. Kh1 {[%clk 0:01:41]} 26... Kc8 {[%clk 0:00:41.4]} 27. Rf3 {[%clk
0:01:12.8]} 27... Qe5 {[%clk 0:00:35]} 28. Qxa6+ {[%clk 0:01:06.7]} 28... Kd7
{[%clk 0:00:29.3]} 29. Kg1 {[%clk 0:01:04.4]} 29... Bc5+ {[%clk 0:00:18.1]} 30.
Kh1 {[%clk 0:01:03.2]} 30... Bd6 {[%clk 0:00:16.4]} 31. Qa4+ {[%clk 0:01:02.5]}
31... Ke7 {[%clk 0:00:13.4]} 32. Kg1 {[%clk 0:01:01]} 32... Bc5+ {[%clk
0:00:13.6]} 33. d4 {[%clk 0:00:57.5]} 33... Bxd4+ {[%clk 0:00:13.7]} 34. Kh1
{[%clk 0:00:57.9]} 34... Be3 {[%clk 0:00:09.8]} 35. Qc4 {[%clk 0:00:52.4]} 35...
Rd8 {[%clk 0:00:08.7]} 36. Rf1 {[%clk 0:00:50.2]} 36... Bc5 {[%clk 0:00:06.8]}
37. Qh4+ {[%clk 0:00:37.9]} 37... Ke8 {[%clk 0:00:04.7]} 38. Qh5+ {[%clk
0:00:35.7]} 38... g6 {[%clk 0:00:04.6]} 39. Qxh7 {[%clk 0:00:35.4]} 39... Bd6
{[%clk 0:00:04.6]} 40. Qxg6+ {[%clk 0:00:35.4]} 40... Ke7 {[%clk 0:00:05.1]} 41.
Qh7+ {[%clk 0:00:27.4]} 41... Ke6 {[%clk 0:00:05]} 42. Qg6+ {[%clk 0:00:19.6]}
42... Ke7 {[%clk 0:00:05.3]} 43. Kg1 {[%clk 0:00:19.9]} 43... Bc5+ {[%clk
0:00:04]} 44. e3 {[%clk 0:00:20.1]} 44... Bxe3+ {[%clk 0:00:04.1]} 45. Kh1
{[%clk 0:00:20.4]} 45... f4 {[%clk 0:00:03.6]} 46. Qh7+ {[%clk 0:00:20.3]} 46...
Ke6 {[%clk 0:00:02.7]} 47. Bf3 {[%clk 0:00:18.5]} 47... Qb2 {[%clk 0:00:02]} 48.
Qg6+ {[%clk 0:00:16.2]} 48... Ke5 {[%clk 0:00:02.2]} 49. Qg7+ {[%clk 0:00:15.8]}
1-0

[Event "Early-Titled-Tuesday-Blitz-May-14-2024"]
[Site "Chess.com"]
[Date "2024.05.14"]
[Round "11"]
[White "ilimchess2"]
[Black "amanjazu"]
[Result "1-0"]
[WhiteElo "2323"]
[BlackElo "2510"]
[TimeControl "180+1"]
[EndTime "10:08:30 PDT"]
[Termination "ilimchess2 won by resignation"]

1. d4 {[%clk 0:03:00]} 1... d5 {[%clk 0:02:55]} 2. Nf3 {[%clk 0:02:59.5]} 2...
c5 {[%clk 0:02:55.4]} 3. c4 {[%clk 0:02:58.2]} 3... Nc6 {[%clk 0:02:56.3]} 4.
cxd5 {[%clk 0:02:49.2]} 4... Nxd4 {[%clk 0:02:46.9]} 5. Nxd4 {[%clk 0:02:48]}
5... cxd4 {[%clk 0:02:47.8]} 6. Qxd4 {[%clk 0:02:41.9]} 6... Nf6 {[%clk
0:02:48]} 7. Nc3 {[%clk 0:02:41.7]} 7... e6 {[%clk 0:02:41.5]} 8. e4 {[%clk
0:02:38.8]} 8... exd5 {[%clk 0:02:41]} 9. exd5 {[%clk 0:02:27.9]} 9... Bd6
{[%clk 0:02:40.8]} 10. Bb5+ {[%clk 0:02:27]} 10... Bd7 {[%clk 0:02:40.7]} 11.
Bxd7+ {[%clk 0:02:25.4]} 11... Qxd7 {[%clk 0:02:40.7]} 12. Bg5 {[%clk
0:02:23.9]} 12... Be7 {[%clk 0:02:33.6]} 13. O-O-O {[%clk 0:02:19.5]} 13... O-O
{[%clk 0:02:28.6]} 14. d6 {[%clk 0:02:19.6]} 14... Bd8 {[%clk 0:02:28.5]} 15. h4
{[%clk 0:02:17.3]} 15... h6 {[%clk 0:02:26.8]} 16. Bf4 {[%clk 0:01:47.7]} 16...
Rc8 {[%clk 0:02:20]} 17. Kb1 {[%clk 0:01:33.8]} 17... Qf5+ {[%clk 0:02:15.8]}
18. Ka1 {[%clk 0:01:33.8]} 18... Bb6 {[%clk 0:02:05.4]} 19. Qd2 {[%clk
0:01:29.3]} 19... Ba5 {[%clk 0:01:53.4]} 20. Rh3 {[%clk 0:01:27.3]} 20... Ne4
{[%clk 0:01:46.5]} 21. Qd5 {[%clk 0:01:08.1]} 21... Qxf4 {[%clk 0:01:12.5]} 22.
Qxe4 {[%clk 0:01:08.2]} 22... Qxf2 {[%clk 0:01:09.2]} 23. d7 {[%clk 0:01:04.3]}
23... Rcd8 {[%clk 0:01:06]} 24. Rhd3 {[%clk 0:01:04]} 24... Qb6 {[%clk
0:01:02.9]} 25. Nd5 {[%clk 0:01:03.4]} 25... Qa6 {[%clk 0:00:54.7]} 26. Qg4
{[%clk 0:01:01.5]} 26... f5 {[%clk 0:00:48]} 27. Ne7+ {[%clk 0:01:01.3]} 27...
Kh7 {[%clk 0:00:46.5]} 28. Nxf5 {[%clk 0:01:01.7]} 28... Qf6 {[%clk 0:00:43]}
29. Rd5 {[%clk 0:01:00.6]} 29... Bb6 {[%clk 0:00:36]} 30. h5 {[%clk 0:00:59.6]}
30... g6 {[%clk 0:00:27.1]} 31. hxg6+ {[%clk 0:00:59.3]} 31... Qxg6 {[%clk
0:00:28]} 32. Qe4 {[%clk 0:00:57.1]} 32... Rf7 {[%clk 0:00:21.7]} 33. g4 {[%clk
0:00:56.4]} 33... Kh8 {[%clk 0:00:17.3]} 34. Rd6 {[%clk 0:00:52.2]} 34... Rf6
{[%clk 0:00:06.9]} 35. Qe5 {[%clk 0:00:49.8]} 35... Rf8 {[%clk 0:00:05.3]} 36.
Rxf6 {[%clk 0:00:49.4]} 36... Qxf6 {[%clk 0:00:04.7]} 37. Qxf6+ {[%clk
0:00:48.6]} 37... Rxf6 {[%clk 0:00:05.6]} 38. d8=Q+ {[%clk 0:00:48.5]} 38...
Bxd8 {[%clk 0:00:05.7]} 39. Rxd8+ {[%clk 0:00:49.4]} 39... Kh7 {[%clk
0:00:06.6]} 40. Rd7+ {[%clk 0:00:48.3]} 40... Kg8 {[%clk 0:00:05.8]} 41. Rxb7
{[%clk 0:00:48.1]} 41... h5 {[%clk 0:00:05.7]} 42. Rxa7 {[%clk 0:00:37.6]} 42...
hxg4 {[%clk 0:00:03.8]} 43. Rg7+ {[%clk 0:00:36.9]} 43... Kf8 {[%clk 0:00:04.2]}
44. Rxg4 {[%clk 0:00:37.2]} 44... Rxf5 {[%clk 0:00:04.8]} 45. a4 {[%clk
0:00:37.3]} 45... Ke7 {[%clk 0:00:05.2]} 46. Ka2 {[%clk 0:00:37]} 46... Kd7
{[%clk 0:00:05.7]} 47. Rc4 {[%clk 0:00:37]} 47... Rf3 {[%clk 0:00:04.6]} 48. b3
{[%clk 0:00:36.5]} 48... Kd6 {[%clk 0:00:05]} 49. Ka3 {[%clk 0:00:36]} 49... Kd5
{[%clk 0:00:05.1]} 50. Rc1 {[%clk 0:00:35]} 50... Kd4 {[%clk 0:00:03.2]} 51. a5
{[%clk 0:00:34]} 51... Rf5 {[%clk 0:00:02.6]} 52. Ka4 {[%clk 0:00:33.6]} 1-0

[Event "Early-Titled-Tuesday-Blitz-May-14-2024"]
[Site "Chess.com"]
[Date "2024.05.14"]
[Round "11"]
[White "ilqar_74"]
[Black "Korchmar_Vasiliy"]
[Result "1-0"]
[WhiteElo "2830"]
[BlackElo "2683"]
[TimeControl "180+1"]
[EndTime "10:08:31 PDT"]
[Termination "ilqar_74 won on time"]

1. e4 {[%clk 0:03:00.9]} 1... c5 {[%clk 0:03:00.3]} 2. Nf3 {[%clk 0:02:58.2]}
2... d6 {[%clk 0:03:00.9]} 3. d4 {[%clk 0:02:57.8]} 3... cxd4 {[%clk 0:03:01.8]}
4. Nxd4 {[%clk 0:02:58.7]} 4... Nf6 {[%clk 0:03:02.4]} 5. Nc3 {[%clk 0:02:59.1]}
5... e5 {[%clk 0:03:03.2]} 6. Bb5+ {[%clk 0:02:58.5]} 6... Nbd7 {[%clk
0:03:03.7]} 7. Nf5 {[%clk 0:02:58.1]} 7... a6 {[%clk 0:03:04.3]} 8. Be2 {[%clk
0:02:58.6]} 8... Nc5 {[%clk 0:03:01.4]} 9. Bg5 {[%clk 0:02:56.6]} 9... Ncxe4
{[%clk 0:02:49.8]} 10. Nxg7+ {[%clk 0:02:42.1]} 10... Bxg7 {[%clk 0:02:50.7]}
11. Nxe4 {[%clk 0:02:42.4]} 11... O-O {[%clk 0:02:42.6]} 12. Bxf6 {[%clk
0:02:27]} 12... Bxf6 {[%clk 0:02:42.4]} 13. Qxd6 {[%clk 0:02:27]} 13... Qxd6
{[%clk 0:02:30.9]} 14. Nxd6 {[%clk 0:02:27.9]} 14... Be6 {[%clk 0:02:27.7]} 15.
Bc4 {[%clk 0:02:24.7]} 15... Rfd8 {[%clk 0:02:17.5]} 16. Bxe6 {[%clk 0:02:22.5]}
16... Rxd6 {[%clk 0:02:17.6]} 17. Bf5 {[%clk 0:02:22.5]} 17... e4 {[%clk
0:02:14.9]} 18. c3 {[%clk 0:02:20.4]} 18... Re8 {[%clk 0:01:54.5]} 19. Ke2
{[%clk 0:02:15.9]} 19... e3 {[%clk 0:01:47.9]} 20. Rad1 {[%clk 0:01:49.1]} 20...
Rb6 {[%clk 0:01:23.9]} 21. Rb1 {[%clk 0:01:46.7]} 21... Bg5 {[%clk 0:00:58.1]}
22. h4 {[%clk 0:01:46.4]} 22... Bh6 {[%clk 0:00:52.8]} 23. g4 {[%clk 0:01:45.2]}
23... Rd6 {[%clk 0:00:32.2]} 24. Rbd1 {[%clk 0:01:28.4]} 24... Rd2+ {[%clk
0:00:32.1]} 25. Rxd2 {[%clk 0:01:28.6]} 25... exd2+ {[%clk 0:00:33]} 26. Kd1
{[%clk 0:01:29.1]} 26... Bf4 {[%clk 0:00:31.4]} 27. Bd3 {[%clk 0:01:28.4]} 27...
Kg7 {[%clk 0:00:27.6]} 28. Be2 {[%clk 0:01:27.9]} 28... h6 {[%clk 0:00:26.4]}
29. Rh3 {[%clk 0:01:28.2]} 29... Kf6 {[%clk 0:00:16.9]} 30. Rd3 {[%clk
0:01:27.8]} 30... Re7 {[%clk 0:00:17.3]} 31. Rd5 {[%clk 0:01:27.1]} 31... Re5
{[%clk 0:00:13.7]} 32. Rd4 {[%clk 0:01:25.4]} 32... Bh2 {[%clk 0:00:05.9]} 33.
f4 {[%clk 0:01:20.1]} 33... Re6 {[%clk 0:00:02.3]} 34. Kxd2 {[%clk 0:01:17.1]}
34... Bg1 {[%clk 0:00:02.5]} 35. Rc4 {[%clk 0:01:11.9]} 35... Be3+ {[%clk
0:00:02.4]} 36. Kc2 {[%clk 0:01:07.1]} 36... Bb6 {[%clk 0:00:01.4]} 37. Bd3
{[%clk 0:01:07]} 37... Kg7 {[%clk 0:00:01.3]} 38. g5 {[%clk 0:01:06]} 38... h5
{[%clk 0:00:01.3]} 39. f5 {[%clk 0:01:05.5]} 39... Rd6 {[%clk 0:00:00.8]} 40.
f6+ {[%clk 0:01:05.4]} 40... Kf8 {[%clk 0:00:00.6]} 41. Rc8+ {[%clk 0:01:05.5]}
41... Rd8 {[%clk 0:00:01.1]} 42. Rxd8+ {[%clk 0:01:05.4]} 42... Bxd8 {[%clk
0:00:01.2]} 43. Be4 {[%clk 0:01:01]} 43... b6 {[%clk 0:00:01]} 44. Bf3 {[%clk
0:01:00.7]} 44... Bc7 {[%clk 0:00:01.3]} 45. Bxh5 {[%clk 0:00:58.7]} 45... Bg3
{[%clk 0:00:01.7]} 46. Be2 {[%clk 0:00:58.9]} 46... Bxh4 {[%clk 0:00:02]} 47.
Bxa6 {[%clk 0:00:59.1]} 47... Bxg5 {[%clk 0:00:02.4]} 48. Kd3 {[%clk 0:00:59.7]}
48... Bxf6 {[%clk 0:00:02.1]} 49. Kc4 {[%clk 0:01:00.2]} 49... Bd8 {[%clk
0:00:01.8]} 50. Kb5 {[%clk 0:01:00.4]} 50... Ke7 {[%clk 0:00:02.5]} 51. Kc6
{[%clk 0:01:00.7]} 51... f5 {[%clk 0:00:02.4]} 52. Be2 {[%clk 0:01:01]} 52... f4
{[%clk 0:00:02.3]} 53. b4 {[%clk 0:01:01.1]} 53... Ke6 {[%clk 0:00:02.5]} 54. a4
{[%clk 0:00:59.7]} 54... Ke5 {[%clk 0:00:02.5]} 55. Bf3 {[%clk 0:00:59.2]} 55...
Ke6 {[%clk 0:00:02.5]} 56. Bh1 {[%clk 0:00:54.6]} 56... Ke5 {[%clk 0:00:02.8]}
57. Bd5 {[%clk 0:00:54.6]} 57... Kf6 {[%clk 0:00:01.9]} 58. Kd7 {[%clk
0:00:52.9]} 58... Be7 {[%clk 0:00:01.5]} 59. Kc7 {[%clk 0:00:53.1]} 59... Ke5
{[%clk 0:00:01.5]} 60. Bf3 {[%clk 0:00:53]} 60... Bf6 {[%clk 0:00:00.8]} 61.
Kxb6 {[%clk 0:00:51.8]} 61... Kd6 {[%clk 0:00:01.7]} 62. c4 {[%clk 0:00:51.6]}
62... Kd7 {[%clk 0:00:02.2]} 63. Kb7 {[%clk 0:00:51.2]} 63... Be7 {[%clk
0:00:02.1]} 64. c5 {[%clk 0:00:50.4]} 64... Kd8 {[%clk 0:00:02.6]} 65. a5 {[%clk
0:00:50.4]} 1-0